fUSD/lending_fUSD_20250513
["ID","MTS","AMOUNT","RATE_DAILY","PERIOD"]
[360909549,1747140456780,-500.0,0.00010218,2]
[360909550,1747140456809,-500.0,0.00010218,2]
[360909551,1747140456837,-500.0,0.00010218,2]
[360909552,1747140456867,-500.0,0.00010218,2]
[360909553,1747140456896,-500.0,0.00010218,2]
[360909554,1747140456925,-500.0,0.00010218,2]
[360909555,1747140456954,-500.0,0.00010218,2]
[360909556,1747140456983,-500.0,0.00010218,2]
[360909557,1747140457012,-500.0,0.00010218,2]
[360909558,1747140457041,-500.0,0.00010218,2]
[360909559,1747140457069,-500.0,0.00010218,2]
[360909560,1747140457098,-500.0,0.00010218,2]
[360909561,1747140457127,-500.0,0.00010218,2]
[360909562,1747140457156,-500.0,0.00010218,2]
[360909563,1747140457178,-1200.0,0.00010219,2]
[360909564,1747140457203,-150.0,0.00010219,2]
[360909565,1747140457226,-154.0,0.00010219,2]
[360909566,1747140457250,-300.0,0.00010219,2]
[360909567,1747140457272,-250.0,0.00010219,2]
[360909568,1747140457294,-18680.66802686,0.00010221,2]
[360909569,1747140457316,-250.0,0.00010221,2]
[360909570,1747140457339,-736.57,0.00010242,2]
[360909571,1747140457364,-246.55683946,0.00010322,2]
[360909572,1747140457387,-1157.55,0.00010592,2]
[360909573,1747140457409,-101065.42388466,0.0001089,2]
[360909574,1747140457432,-4330.2297681,0.000109,2]
[360909575,1747140457461,-275.14573038,0.000109,2]
[360909576,1747140457484,-275.14573034,0.000109,2]
[360909577,1747140457506,-275.14573034,0.000109,2]
[360909578,1747140457530,-275.14573034,0.000109,2]
[360909579,1747140457552,-275.14573034,0.000109,2]
[360909580,1747140457575,-275.14573034,0.000109,2]
[360909581,1747140457597,-275.14573034,0.000109,2]
[360909582,1747140457620,-275.14573034,0.000109,2]
[360909583,1747140457643,-928.64501711,0.000109,2]
[360909584,1747140457666,-1633.37258579,0.000109,2]
[360909585,1747140457691,-9322.2287605,0.000109,2]
[360909586,1747140457713,-429.17813801,0.000109,2]
[360909587,1747140457736,-4404.87035106,0.000109,2]
[360909588,1747140457758,-17476.59,0.00010916,2]
[360909589,1747140457781,-333.63290987,0.00010917,2]
[360909590,1747140457810,-186.164,0.00010973,2]
[360909591,1747140457832,-340.30492401,0.00010973,2]
[360909592,1747140457858,-500.0,0.00010973,2]
[360909593,1747140457883,-500.65759026,0.00010973,2]
[360909594,1747140457905,-500.0,0.00010973,2]
[360909595,1747140457927,-500.0,0.00010973,2]
[360909596,1747140457956,-506.05415062,0.00010973,2]
[360909597,1747140457981,-1211.607,0.00010973,2]
[360909598,1747140458004,-400.0,0.00010998,2]
[360909599,1747140458026,-266.45762449,0.00010998,2]
[360909600,1747140458047,-400.0,0.00010998,2]
[360909601,1747140458224,-540.56499974,0.00010998,2]
[360909602,1747140458247,-400.0,0.00010998,2]
[360909603,1747140458270,-500.0,0.00010998,2]
[360909604,1747140458294,-400.0,0.00010998,2]
[360909605,1747140458317,-400.0,0.00010998,2]
[360909606,1747140458339,-400.0,0.00010998,2]
[360909607,1747140458361,-400.0,0.00010998,2]
[360909608,1747140458383,-400.0,0.00010998,2]
[360909609,1747140458405,-400.0,0.00010998,2]
[360909610,1747140458428,-400.0,0.00010998,2]
[360909611,1747140458452,-400.0,0.00010998,2]
[360909612,1747140458474,-400.0,0.00010998,2]
[360909613,1747140458498,-451.13638877,0.00010998,2]
[360909614,1747140458521,-400.0,0.00010998,2]
[360909615,1747140458544,-684.4,0.00010998,2]
[360909616,1747140458581,-1017.57,0.00010998,2]
[360909617,1747140458606,-598.62,0.00010998,2]
[360909618,1747140458629,-275.68021413,0.00010998,2]
[360909619,1747140458654,-400.0,0.00010998,2]
[360909620,1747140458676,-250.0,0.00010998,2]
[360909621,1747140458703,-400.0,0.00010998,2]
[360909622,1747140458727,-450.0,0.00010998,2]
[360909623,1747140458750,-400.0,0.00010998,2]
[360909624,1747140458774,-825.07,0.00010998,2]
[360909625,1747140458797,-400.0,0.00010998,2]
[360909626,1747140458820,-400.0,0.00010998,2]
[360909627,1747140458843,-400.0,0.00010998,2]
[360909628,1747140458868,-402.14251908,0.00010998,2]
[360909629,1747140458891,-400.0,0.00010998,2]
[360909630,1747140458914,-400.0,0.00010998,2]
[360909631,1747140458937,-485.43,0.00010998,2]
[360909632,1747140458962,-400.0,0.00010998,2]
[360909633,1747140458986,-184.61873888,0.00010998,2]
[360909634,1747140459009,-400.0,0.00010998,2]
[360909635,1747140459032,-502.01,0.00010998,2]
[360909636,1747140459054,-484.78,0.00010998,2]
[360909637,1747140459077,-400.0,0.00010998,2]
[360909638,1747140459099,-403.07786563,0.00010998,2]
[360909639,1747140459121,-400.0,0.00010998,2]
[360909640,1747140459143,-400.0,0.00010998,2]
[360909641,1747140459165,-400.0,0.00010998,2]
[360909642,1747140459188,-1302.57,0.00010998,2]
[360909643,1747140459214,-400.0,0.00010998,2]
[360909644,1747140459237,-400.0,0.00010998,2]
[360909645,1747140459260,-400.0,0.00010998,2]
[360909646,1747140459282,-400.0,0.00010998,2]
[360909647,1747140459305,-400.0,0.00010998,2]
[360909648,1747140459328,-400.0,0.00010998,2]
[360909649,1747140459351,-400.0,0.00010998,2]
[360909650,1747140459375,-400.0,0.00010998,2]
[360909651,1747140459397,-400.0,0.00010998,2]
[360909652,1747140459421,-2597.54,0.00010998,2]
[360909653,1747140459447,-400.0,0.00010998,2]
[360909654,1747140459469,-400.0,0.00010998,2]
[360909655,1747140459491,-400.0,0.00010998,2]
[360909656,1747140459514,-400.0,0.00010998,2]
[360909657,1747140459536,-400.0,0.00010998,2]
[360909658,1747140459559,-400.0,0.00010998,2]
[360909659,1747140459581,-400.0,0.00010998,2]
[360909660,1747140459604,-406.61215032,0.00010998,2]
[360909661,1747140459627,-400.0,0.00010998,2]
[360909662,1747140459648,-400.0,0.00010998,2]
[360909663,1747140459671,-401.0769234,0.00010998,2]
[360909664,1747140459697,-400.0,0.00010998,2]
[360909665,1747140459720,-400.0,0.00010998,2]
[360909666,1747140459743,-400.0,0.00010998,2]
[360909667,1747140459766,-179.667918,0.00010998,2]
[360909668,1747140459789,-400.0,0.00010998,2]
[360909669,1747140459811,-400.0,0.00010998,2]
[360909670,1747140459834,-595.88,0.00010998,2]
[360909671,1747140459861,-5398.600331,0.00010998,2]
[360909672,1747140459886,-589.443693,0.00010998,2]
[360909673,1747140459908,-400.0,0.00010998,2]
[360909674,1747140459930,-400.0,0.00010998,2]
[360909675,1747140459957,-400.0,0.00010998,2]
[360909676,1747140459980,-407.99587504,0.00010998,2]
[360909677,1747140460003,-807.87,0.00010998,2]
[360909678,1747140460026,-540.8516284,0.00010998,2]
[360909679,1747140460049,-482.19,0.00010998,2]
[360909680,1747140460071,-382.0858766,0.00010998,2]
[360909681,1747140460093,-243.60496239,0.00010998,2]
[360909682,1747140460116,-400.0,0.00010998,2]
[360909683,1747140460139,-400.0,0.00010998,2]
[360909684,1747140460161,-400.0,0.00010998,2]
[360909685,1747140460183,-539.22131803,0.00010998,2]
[360909686,1747140460206,-401.59290741,0.00010998,2]
[360909687,1747140460229,-400.0,0.00010998,2]
[360909688,1747140460252,-400.0,0.00010998,2]
[360909689,1747140460275,-400.0,0.00010998,2]
[360909690,1747140460298,-881.31129,0.00010998,2]
[360909691,1747140460321,-400.0,0.00010998,2]
[360909692,1747140460344,-584.89,0.00010998,2]
[360909693,1747140460367,-404.16851085,0.00010998,2]
[360909694,1747140460391,-407.02606465,0.00010998,2]
[360909695,1747140460414,-400.0,0.00010998,2]
[360909696,1747140460613,-400.0,0.00010998,2]
[360909697,1747140460636,-485.23864543,0.00010998,2]
[360909698,1747140460659,-400.0,0.00010998,2]
[360909699,1747140460681,-403.56754926,0.00010998,2]
[360909700,1747140460705,-400.0,0.00010998,2]
[360909701,1747140460728,-400.0,0.00010998,2]
[360909702,1747140460750,-400.0,0.00010998,2]
[360909703,1747140460772,-400.0,0.00010998,2]
[360909704,1747140460794,-544.43678324,0.00010998,2]
[360909705,1747140460816,-400.0,0.00010998,2]
[360909706,1747140460839,-400.0,0.00010998,2]
[360909707,1747140460862,-400.0,0.00010998,2]
[360909708,1747140460887,-400.0,0.00010998,2]
[360909709,1747140460911,-404.77623281,0.00010998,2]
[360909710,1747140460936,-400.0,0.00010998,2]
[360909711,1747140460962,-400.0,0.00010998,2]
[360909712,1747140460986,-2097.11,0.00010998,2]
[360909713,1747140461007,-225.63608704,0.00010998,2]
[360909714,1747140461029,-400.0,0.00010998,2]
[360909715,1747140461051,-400.0,0.00010998,2]
[360909716,1747140461073,-402.67312923,0.00010998,2]
[360909717,1747140461095,-400.0,0.00010998,2]
[360909718,1747140461118,-400.0,0.00010998,2]
[360909719,1747140461140,-400.0,0.00010998,2]
[360909720,1747140461162,-510.7511666,0.00010998,2]
[360909721,1747140461184,-400.0,0.00010998,2]
[360909722,1747140461209,-400.0,0.00010998,2]
[360909723,1747140461231,-250.0,0.00010998,2]
[360909724,1747140461254,-565.46,0.00010998,2]
[360909725,1747140461276,-512.95250199,0.00010998,2]
[360909726,1747140461298,-400.0,0.00010998,2]
[360909727,1747140461320,-400.0,0.00010998,2]
[360909728,1747140461344,-400.0,0.00010998,2]
[360909729,1747140461367,-400.0,0.00010998,2]
[360909730,1747140461389,-400.0,0.00010998,2]
[360909731,1747140461412,-400.0,0.00010998,2]
[360909732,1747140461438,-400.0,0.00010998,2]
[360909733,1747140461463,-400.0,0.00010998,2]
[360909734,1747140461486,-400.0,0.00010998,2]
[360909735,1747140461509,-400.0,0.00010998,2]
[360909736,1747140461531,-400.0,0.00010998,2]
[360909737,1747140461554,-400.0,0.00010998,2]
[360909738,1747140461576,-402.30038702,0.00010998,2]
[360909739,1747140461598,-400.0,0.00010998,2]
[360909740,1747140461620,-2173.88,0.00010998,2]
[360909741,1747140461643,-403.85003673,0.00010998,2]
[360909742,1747140461666,-400.0,0.00010998,2]
[360909743,1747140461688,-400.0,0.00010998,2]
[360909744,1747140461713,-400.0,0.00010998,2]
[360909745,1747140461735,-400.53720294,0.00010998,2]
[360909746,1747140461759,-488.36,0.00010998,2]
[360909747,1747140461781,-400.0,0.00010998,2]
[360909748,1747140461804,-460.26,0.00010998,2]
[360909749,1747140461827,-400.0,0.00010998,2]
[360909750,1747140461850,-400.0,0.00010998,2]
[360909751,1747140461876,-400.0,0.00010998,2]
[360909752,1747140461899,-400.0,0.00010999,2]
[360909753,1747140461923,-400.0,0.00010999,2]
[360909754,1747140461950,-400.0,0.00010999,2]
[360909755,1747140461979,-400.0,0.00010999,2]
[360909756,1747140462003,-400.0,0.00010999,2]
[360909757,1747140462029,-400.0,0.00010999,2]
[360909758,1747140462052,-400.0,0.00010999,2]
[360909759,1747140462075,-400.0,0.00010999,2]
[360909760,1747140462099,-450.0,0.00010999,2]
[360909761,1747140462122,-497.23685318,0.00010999,2]
[360909762,1747140462144,-500.0,0.00010999,2]
[360909763,1747140462168,-400.0,0.00010999,2]
[360909764,1747140462195,-400.0,0.00010999,2]
[360909765,1747140462219,-400.0,0.00010999,2]
[360909766,1747140462242,-400.0,0.00010999,2]
[360909767,1747140462266,-400.0,0.00010999,2]
[360909768,1747140462290,-400.0,0.00010999,2]
[360909769,1747140462313,-401.18386999,0.00010999,2]
[360909770,1747140462335,-172.08177272,0.00010999,2]
[360909771,1747140462357,-461.094998,0.00010999,2]
[360909772,1747140462380,-403.68568162,0.00010999,2]
[360909773,1747140462403,-400.0,0.00010999,2]
[360909774,1747140462426,-400.0,0.00010999,2]
[360909775,1747140462449,-332.44541155,0.00010999,2]
[360909776,1747140462477,-400.0,0.00010999,2]
[360909777,1747140462500,-400.0,0.00010999,2]
[360909778,1747140462523,-230.57689116,0.00010999,2]
[360909779,1747140462546,-400.0,0.00010999,2]
[360909780,1747140462569,-400.0,0.00010999,2]
[360909781,1747140462592,-400.0,0.00010999,2]
[360909782,1747140462615,-400.0,0.00010999,2]
[360909783,1747140462638,-400.0,0.00010999,2]
[360909784,1747140462661,-282.17252464,0.00010999,2]
[360909785,1747140462684,-400.0,0.00010999,2]
[360909786,1747140462708,-159.0383761,0.00010999,2]
[360909787,1747140462732,-400.0,0.00010999,2]
[360909788,1747140462945,-400.0,0.00010999,2]
[360909789,1747140462968,-400.0,0.00010999,2]
[360909790,1747140462990,-400.0,0.00010999,2]
[360909791,1747140463013,-400.0,0.00010999,2]
[360909792,1747140463035,-400.0,0.00010999,2]
[360909793,1747140463058,-400.0,0.00010999,2]
[360909794,1747140463081,-400.0,0.00010999,2]
[360909795,1747140463103,-400.0,0.00010999,2]
[360909796,1747140463125,-400.0,0.00010999,2]
[360909797,1747140463147,-400.0,0.00010999,2]
[360909798,1747140463170,-400.0,0.00010999,2]
[360909799,1747140463193,-400.0,0.00010999,2]
[360909800,1747140463215,-400.0,0.00010999,2]
[360909801,1747140463237,-400.0,0.00010999,2]
[360909802,1747140463260,-400.0,0.00010999,2]
[360909803,1747140463283,-400.0,0.00010999,2]
[360909804,1747140463305,-400.0,0.00010999,2]
[360909805,1747140463328,-400.0,0.00010999,2]
[360909806,1747140463351,-400.0,0.00010999,2]
[360909807,1747140463373,-400.0,0.00010999,2]
[360909808,1747140463396,-400.0,0.00010999,2]
[360909809,1747140463418,-400.0,0.00010999,2]
[360909810,1747140463441,-400.0,0.00010999,2]
[360909811,1747140463466,-400.0,0.00010999,2]
[360909812,1747140463504,-400.0,0.00010999,2]
[360909813,1747140463529,-400.0,0.00010999,2]
[360909814,1747140463554,-162.72538672,0.00010999,2]
[360909815,1747140463579,-400.0,0.00010999,2]
[360909816,1747140463604,-400.0,0.00010999,2]
[360909817,1747140463628,-400.0,0.00010999,2]
[360909818,1747140463652,-464.78517387,0.00010999,2]
[360909819,1747140463676,-273.18555747,0.00010999,2]
[360909820,1747140463701,-400.0,0.00010999,2]
[360909821,1747140463725,-538.68545635,0.00010999,2]
[360909822,1747140463749,-400.0,0.00010999,2]
[360909823,1747140463772,-400.0,0.00010999,2]
[360909824,1747140463796,-400.0,0.00010999,2]
[360909825,1747140463820,-400.0,0.00010999,2]
[360909826,1747140463845,-400.0,0.00010999,2]
[360909827,1747140463871,-400.0,0.00010999,2]
[360909828,1747140463894,-400.0,0.00010999,2]
[360909829,1747140463919,-517.49020979,0.00010999,2]
[360909830,1747140463943,-503.38800988,0.00010999,2]
[360909831,1747140463966,-402.02458001,0.00010999,2]
[360909832,1747140463989,-400.0,0.00010999,2]
[360909833,1747140464012,-400.0,0.00010999,2]
[360909834,1747140464036,-400.0,0.00010999,2]
[360909835,1747140464059,-400.0,0.00010999,2]
[360909836,1747140464081,-400.0,0.00010999,2]
[360909837,1747140464104,-400.0,0.00010999,2]
[360909838,1747140464127,-197.72056,0.00010999,2]
[360909839,1747140464149,-400.0,0.00010999,2]
[360909840,1747140464172,-400.0,0.00010999,2]
[360909841,1747140464196,-226.1654275,0.00010999,2]
[360909842,1747140464219,-400.0,0.00010999,2]
[360909843,1747140464243,-400.0,0.00010999,2]
[360909844,1747140464266,-470.0,0.00010999,2]
[360909845,1747140464290,-400.0,0.00010999,2]
[360909846,1747140464313,-450.0,0.00010999,2]
[360909847,1747140464336,-400.0,0.00010999,2]
[360909848,1747140464359,-150.22476371,0.00010999,2]
[360909849,1747140464383,-445.26,0.00010999,2]
[360909850,1747140464407,-450.0,0.00010999,2]
[360909851,1747140464430,-400.0,0.00010999,2]
[360909852,1747140464454,-400.0,0.00010999,2]
[360909853,1747140464477,-400.0,0.00010999,2]
[360909854,1747140464500,-400.0,0.00010999,2]
[360909855,1747140464524,-400.0,0.00010999,2]
[360909856,1747140464547,-450.0,0.00010999,2]
[360909857,1747140464569,-400.0,0.00010999,2]
[360909858,1747140464592,-400.0,0.00010999,2]
[360909859,1747140464615,-400.0,0.00010999,2]
[360909860,1747140464637,-400.0,0.00010999,2]
[360909861,1747140464660,-474.96530787,0.00010999,2]
[360909862,1747140464682,-400.0,0.00010999,2]
[360909863,1747140464705,-500.0,0.00010999,2]
[360909864,1747140464727,-400.0,0.00010999,2]
[360909865,1747140464751,-400.0,0.00010999,2]
[360909866,1747140464772,-400.0,0.00010999,2]
[360909867,1747140464795,-400.0,0.00010999,2]
[360909868,1747140464817,-400.0,0.00010999,2]
[360909869,1747140464839,-162.74349659,0.00010999,2]
[360909870,1747140464863,-400.0,0.00010999,2]
[360909871,1747140464887,-400.0,0.00010999,2]
[360909872,1747140464909,-400.0,0.00010999,2]
[360909873,1747140464931,-400.0,0.00010999,2]
[360909874,1747140464956,-400.0,0.00010999,2]
[360909875,1747140464979,-744.19,0.00010999,2]
[360909876,1747140465178,-400.0,0.00010999,2]
[360909877,1747140465201,-400.0,0.00010999,2]
[360909878,1747140465223,-432.1224313,0.00010999,2]
[360909879,1747140465245,-4649.43,0.00010999,2]
[360909880,1747140465268,-799.53,0.00010999,2]
[360909881,1747140465290,-300.0,0.00010999,2]
[360909882,1747140465313,-400.0,0.00010999,2]
[360909883,1747140465334,-500.0,0.00010999,2]
[360909884,1747140465357,-400.0,0.00010999,2]
[360909885,1747140465378,-500.0,0.00010999,2]
[360909886,1747140465401,-500.0,0.00010999,2]
[360909887,1747140465423,-500.0,0.00010999,2]
[360909888,1747140465446,-500.0,0.00010999,2]
[360909889,1747140465468,-513.09,0.00010999,2]
[360909890,1747140465492,-500.0,0.00010999,2]
[360909891,1747140465515,-400.0,0.00010999,2]
[360909892,1747140465538,-449.09353745,0.00010999,2]
[360909893,1747140465560,-400.0,0.00010999,2]
[360909894,1747140465582,-400.0,0.00010999,2]
[360909895,1747140465604,-400.0,0.00010999,2]
[360909896,1747140465627,-400.0,0.00010999,2]
[360909897,1747140465649,-400.0,0.00010999,2]
[360909898,1747140465671,-400.0,0.00010999,2]
[360909899,1747140465693,-400.0,0.00010999,2]
[360909900,1747140465716,-400.0,0.00010999,2]
[360909901,1747140465737,-400.0,0.00010999,2]
[360909902,1747140465760,-400.0,0.00010999,2]
[360909903,1747140465782,-464.33976033,0.00010999,2]
[360909904,1747140465804,-400.0,0.00010999,2]
[360909905,1747140465826,-486.91,0.00010999,2]
[360909906,1747140465848,-400.0,0.00010999,2]
[360909907,1747140465875,-400.0,0.00010999,2]
[360909908,1747140465897,-235.40814871,0.00010999,2]
[360909909,1747140465921,-475.16,0.00010999,2]
[360909910,1747140465945,-400.0,0.00010999,2]
[360909911,1747140465967,-400.0,0.00010999,2]
[360909912,1747140465990,-506.84875953,0.00010999,2]
[360909913,1747140466012,-400.0,0.00010999,2]
[360909914,1747140466036,-400.0,0.00010999,2]
[360909915,1747140466060,-400.0,0.00010999,2]
[360909916,1747140466082,-450.0,0.00010999,2]
[360909917,1747140466104,-525.89,0.00010999,2]
[360909918,1747140466126,-466.41,0.00010999,2]
[360909919,1747140466148,-400.0,0.00010999,2]
[360909920,1747140466171,-400.0,0.00010999,2]
[360909921,1747140466194,-400.0,0.00010999,2]
[360909922,1747140466216,-400.0,0.00010999,2]
[360909923,1747140466238,-400.0,0.00010999,2]
[360909924,1747140466261,-400.0,0.00010999,2]
[360909925,1747140466284,-400.0,0.00010999,2]
[360909926,1747140466307,-513.74,0.00010999,2]
[360909927,1747140466330,-450.01816744,0.00010999,2]
[360909928,1747140466354,-400.0,0.00010999,2]
[360909929,1747140466378,-404.84,0.00010999,2]
[360909930,1747140466402,-400.0,0.00010999,2]
[360909931,1747140466425,-400.0,0.00010999,2]
[360909932,1747140466450,-400.0,0.00010999,2]
[360909933,1747140466472,-400.0,0.00010999,2]
[360909934,1747140466495,-801.57,0.00010999,2]
[360909935,1747140466517,-400.0,0.00010999,2]
[360909936,1747140466541,-400.0,0.00010999,2]
[360909937,1747140466564,-400.0,0.00010999,2]
[360909938,1747140466586,-400.0,0.00010999,2]
[360909939,1747140466608,-400.0,0.00010999,2]
[360909940,1747140466631,-400.0,0.00010999,2]
[360909941,1747140466653,-400.0,0.00010999,2]
[360909942,1747140466675,-400.0,0.00010999,2]
[360909943,1747140466699,-460.76,0.00010999,2]
[360909944,1747140466722,-400.0,0.00010999,2]
[360909945,1747140466744,-400.0,0.00010999,2]
[360909946,1747140466767,-400.0,0.00010999,2]
[360909947,1747140466789,-400.0,0.00010999,2]
[360909948,1747140466811,-400.0,0.00010999,2]
[360909949,1747140466834,-400.0,0.00010999,2]
[360909950,1747140466856,-594.23,0.00010999,2]
[360909951,1747140466882,-400.0,0.00010999,2]
[360909952,1747140466904,-400.0,0.00010999,2]
[360909953,1747140466927,-400.0,0.00010999,2]
[360909954,1747140466950,-400.0,0.00010999,2]
[360909955,1747140466973,-500.0,0.00010999,2]
[360909956,1747140466995,-500.0,0.00010999,2]
[360909957,1747140467018,-500.0,0.00010999,2]
[360909958,1747140467041,-400.0,0.00010999,2]
[360909959,1747140467063,-400.0,0.00010999,2]
[360909960,1747140467085,-400.0,0.00010999,2]
[360909961,1747140467250,-400.0,0.00010999,2]
[360909962,1747140467280,-476.26356784,0.00010999,2]
[360909963,1747140467304,-400.0,0.00010999,2]
[360909964,1747140467328,-400.0,0.00010999,2]
[360909965,1747140467353,-440.31,0.00010999,2]
[360909966,1747140467378,-400.0,0.00010999,2]
[360909967,1747140467402,-400.0,0.00010999,2]
[360909968,1747140467426,-583.39,0.00010999,2]
[360909969,1747140467451,-2338.51,0.00010999,2]
[360909970,1747140467474,-400.0,0.00010999,2]
[360909971,1747140467498,-400.0,0.00010999,2]
[360909972,1747140467523,-400.0,0.00010999,2]
[360909973,1747140467547,-4233.22,0.00010999,2]
[360909974,1747140467571,-1405.83,0.00010999,2]
[360909975,1747140467595,-400.0,0.00010999,2]
[360909976,1747140467619,-400.0,0.00010999,2]
[360909977,1747140467642,-492.09,0.00010999,2]
[360909978,1747140467665,-400.0,0.00010999,2]
[360909979,1747140467689,-400.0,0.00010999,2]
[360909980,1747140467713,-909.75,0.00010999,2]
[360909981,1747140467736,-440.81,0.00010999,2]
[360909982,1747140467763,-400.0,0.00010999,2]
[360909983,1747140467786,-2023.14,0.00010999,2]
[360909984,1747140467808,-400.0,0.00010999,2]
[360909985,1747140467837,-400.0,0.00010999,2]
[360909986,1747140467861,-400.0,0.00010999,2]
[360909987,1747140467888,-573.68,0.00010999,2]
[360909988,1747140467914,-1066.13,0.00010999,2]
[360909989,1747140467937,-400.0,0.00010999,2]
[360909990,1747140467964,-769.15,0.00010999,2]
[360909991,1747140467987,-400.0,0.00010999,2]
[360909992,1747140468010,-400.0,0.00010999,2]
[360909993,1747140468034,-400.0,0.00010999,2]
[360909994,1747140468058,-421.91,0.00010999,2]
[360909995,1747140468082,-400.0,0.00010999,2]
[360909996,1747140468106,-400.0,0.00010999,2]
[360909997,1747140468129,-400.0,0.00010999,2]
[360909998,1747140468153,-400.0,0.00010999,2]
[360909999,1747140468177,-462.77,0.00010999,2]
[360910000,1747140468201,-400.0,0.00010999,2]
[360910001,1747140468225,-1794.3,0.00010999,2]
[360910002,1747140468260,-400.0,0.00010999,2]
[360910003,1747140468302,-1034.29,0.00010999,2]
[360910004,1747140468351,-430.63,0.00010999,2]
[360910005,1747140468396,-400.0,0.00010999,2]
[360910006,1747140468442,-2106.65,0.00010999,2]
[360910007,1747140468484,-400.0,0.00010999,2]
[360910008,1747140468535,-400.0,0.00010999,2]
[360910009,1747140468576,-2085.75,0.00010999,2]
[360910010,1747140468617,-400.0,0.00010999,2]
[360910011,1747140468653,-400.0,0.00010999,2]
[360910012,1747140468696,-400.0,0.00010999,2]
[360910013,1747140468741,-400.0,0.00010999,2]
[360910014,1747140468788,-400.0,0.00010999,2]
[360910015,1747140468825,-400.0,0.00010999,2]
[360910016,1747140468861,-400.0,0.00010999,2]
[360910017,1747140468901,-1122.83,0.00010999,2]
[360910018,1747140468937,-648.81,0.00010999,2]
[360910019,1747140468975,-400.0,0.00010999,2]
[360910020,1747140469013,-400.0,0.00010999,2]
[360910021,1747140469049,-621.48,0.00010999,2]
[360910022,1747140469085,-450.0,0.00010999,2]
[360910023,1747140469123,-400.0,0.00010999,2]
[360910024,1747140469160,-1042.73,0.00010999,2]
[360910025,1747140469197,-530.75,0.00010999,2]
[360910026,1747140469235,-1974.86,0.00010999,2]
[360910027,1747140469273,-400.0,0.00010999,2]
[360910028,1747140469309,-400.0,0.00010999,2]
[360910029,1747140469348,-771.7,0.00010999,2]
[360910030,1747140469388,-6858.04,0.00010999,2]
[360910031,1747140469426,-400.0,0.00010999,2]
[360910032,1747140469466,-400.0,0.00010999,2]
[360910033,1747140469505,-400.0,0.00010999,2]
[360910034,1747140469544,-346.16374378,0.00010999,2]
[360910035,1747140469610,-400.0,0.00010999,2]
[360910036,1747140469654,-400.0,0.00010999,2]
[360910037,1747140469697,-400.0,0.00010999,2]
[360910038,1747140469736,-400.0,0.00010999,2]
[360910039,1747140469774,-1755.7,0.00010999,2]
[360910040,1747140469811,-400.0,0.00010999,2]
[360910041,1747140469838,-643.09,0.00010999,2]
[360910042,1747140469864,-1000.0,0.00010999,2]
[360910043,1747140470192,-400.0,0.00010999,2]
[360910044,1747140470238,-707.45,0.00010999,2]
[360910045,1747140470263,-400.0,0.00010999,2]
[360910046,1747140470288,-400.0,0.00010999,2]
[360910047,1747140470312,-400.0,0.00010999,2]
[360910048,1747140470337,-1180.91,0.00010999,2]